Workbook

Sheet с 11 до 18 лет
A2: День: понедельник | E2: Сезон: 01.09-01.03 (2025-2026гг)
A3: Неделя: 1 | E3: Возраст: с 11 до 18 лет
A5: № | B5: Наименование блюда | E5: масса | F5: Пищевые вещества (г) | I5: энерге- | J5: Витамины | M5: Минеральные вещества (мг)
A6: рец. | E6: порций | F6: Б | G6: Ж | H6: У | I6: тическая | J6: В1 | K6: С | L6: А | M6: Са | N6: Р | O6: Мg | P6: Fe
I7: ценность
B8: Завтрак
A9: 19 | B9: Салат из моркови | E9: 100 | F9: 2 | G9: 9 | H9: 5.29 | I9: 93 | J9: 0 | K9: 0.07 | L9: 21 | M9: 100 | N9: 60 | O9: 5.5 | P9: 0.07
A10: 98 | B10: Котлеты из говядины, соус томатный 80/40 | E10: 140 | F10: 15.6 | G10: 18.6 | H10: 16.1 | I10: 310.06 | J10: 0.07 | K10: 0.29 | L10: 40.5 | M10: 34.65 | N10: 162.2 | O10: 28.56 | P10: 1.48
A11: 212 | B11: Макаронные изделия отварные | E11: 185 | F11: 6.97 | G11: 4.44 | H11: 44.48 | I11: 245.99 | J11: 0.09 | K11: 0 | L11: 24 | M11: 11.15 | N11: 46.26 | O11: 8.18 | P11: 0.83
A12: 311 | B12: Кисель Валетек | E12: 200 | F12: 0.25 | G12: 0 | H12: 4.8 | I12: 20 | J12: 0.43 | K12: 25 | L12: 0 | M12: 0 | N12: 0 | O12: 0 | P12: 0
A13: СГР | B13: Хлеб пшеничный для детского питания | E13: 50 | F13: 4 | G13: 0 | H13: 7.81 | I13: 39.06 | J13: 0.07 | K13: 0 | L13: 0 | M13: 9.2 | N13: 34.8 | O13: 13.2 | P13: 0.8
B14: Фрукты | E14: 200 | F14: 1 | G14: 0 | H14: 7 | I14: 34 | J14: 0.05 | K14: 34.2 | L14: 0 | M14: 31.5 | N14: 15.3 | O14: 9.9 | P14: 0.09
B15: Итого за завтрак | F15: =SUM(F9:F14) -> 29.82 | G15: 32.04 | H15: 85.48 | I15: 742.11 | J15: 0.71 | K15: 59.56 | L15: 85.5 | M15: 186.5 | N15: 318.56 | O15: 65.34 | P15: 3.27
B16: Обед
A17: 6 | B17: Салат из белокачанной капусты с яблоками | E17: 100 | F17: 1.6 | G17: 5.1 | H17: 9.4 | I17: 90 | J17: 0.05 | K17: 30.6 | L17: 0.03 | M17: 14.31 | N17: 25.4 | O17: 14.53 | P17: 0.45
A18: 54 | B18: Рассольник Ленинградский со сметаной | E18: 260 | F18: 5.03 | G18: 11.3 | H18: 32.38 | I18: 149.6 | J18: 0.12 | K18: 21.44 | L18: 7.61 | M18: 33.08 | N18: 158.78 | O18: 34.36 | P18: 2.52
A19: 112 | B19: Плов из говядины | E19: 210 | F19: 20.88 | G19: 20.24 | H19: 30.9 | I19: 392 | J19: 0.08 | K19: 1.35 | L19: 0 | M19: 14.53 | N19: 178.97 | O19: 41.8 | P19: 1.97
A20: 294 | B20: Компот из сухофруктов | E20: 200 | F20: 0.12 | G20: 0 | H20: 19.4 | I20: 79.6 | J20: 0.07 | K20: 0.29 | L20: 0 | M20: 0 | N20: 0 | O20: 8.5 | P20: 0.92
A21: СГР | B21: Хлеб пшеничный | E21: 25 | F21: 2 | G21: 0 | H21: 10 | I21: 50 | J21: 0.04 | K21: 0 | L21: 0 | M21: 5.75 | N21: 21.75 | O21: 8.25 | P21: 0.5
A22: СГР | B22: Хлеб ржано-пшеничный | E22: 25 | F22: 2 | G22: 0 | H22: 10 | I22: 50 | J22: 0.04 | K22: 0 | L22: 0 | M22: 7.25 | N22: 32.5 | O22: 10.5 | P22: 0.9
B23: Итого за обед | F23: =SUM(F17:F22) -> 31.63 | G23: 36.64 | H23: 112.08 | I23: 811.2 | J23: 0.4 | K23: 53.68 | L23: 7.64 | M23: 74.92 | N23: 417.4 | O23: 117.94 | P23: 7.26
B24: Итого за день | F24: 59.28 | G24: 65.68 | H24: 195.29 | I24: 1509.02 | J24: 1.11 | K24: 113.24 | L24: 174.23 | M24: 275.23 | N24: 735.96 | O24: 183.28 | P24: 10.53
A27: День: вторник | E27: Сезон: 01.09-01.03 (2025-2026гг)
A28: Неделя: 1 | E28: Возраст: с 11 до 18 лет
A29: № | B29: Наименование блюда | E29: масса | F29: Пищевые вещества (г) | I29: энерге- | J29: Витамины | M29: Минеральные вещества (мг)
A30: рец. | E30: порций | F30: Б | G30: Ж | H30: У | I30: тическая | J30: В1 | K30: С | L30: А | M30: Са | N30: Р | O30: Мg | P30: Fe
I31: ценность
B32: Завтрак
A33: 181 | B33: Каша рисовая молочная | E33: 205 | F33: 5.12 | G33: 6.62 | H33: 32.61 | I33: 210.13 | J33: 0.07 | K33: 0.54 | L33: 0 | M33: 266.71 | N33: 0 | O33: 36.72 | P33: 0.8
A34: 3 | B34: Масло сливочное | E34: 10 | F34: 0.1 | G34: 7.13 | H34: 0.1 | I34: 66 | J34: 0 | K34: 0 | L34: 40 | M34: 0.63 | N34: 3 | O34: 4.95 | P34: 0.3
A35: 283 | B35: Чай с сахаром | E35: 200 | F35: 0.1 | G35: 0 | H35: 9.1 | I35: 35 | J35: 0 | K35: 0 | L35: 0 | M35: 0.45 | N35: 0 | O35: 0 | P35: 0.05
A36: СГР | B36: Хлеб пшеничный для детского питания | E36: 50 | F36: 4 | G36: 0 | H36: 7.81 | I36: 39.06 | J36: 0.09 | K36: 0 | L36: 0 | M36: 10.2 | N36: 35.8 | O36: 14.2 | P36: 1
B37: Фрукты | E37: 200 | F37: 1 | G37: 0 | H37: 7 | I37: 34 | J37: 0 | K37: 0 | L37: 10.9 | M37: 0 | N37: 0 | O37: 0 | P37: 0
B38: Итого за завтрак | F38: =SUM(F33:F37) -> 10.32 | G38: 13.75 | H38: 56.62 | I38: 384.19 | J38: 0.16 | K38: 0.54 | L38: 50.9 | M38: 277.99 | N38: 38.8 | O38: 55.87 | P38: 2.15
B39: Обед
A40: 40 | B40: Салат Степной | E40: 100 | F40: 1.6 | G40: 5.21 | H40: 8.77 | I40: 89.19 | J40: 0.02 | K40: 3.5 | L40: 0 | M40: 8.8 | N40: 0.49 | O40: 8.5 | P40: 0.25
A41: 56 | B41: Бишбармак | E41: 250 | F41: 2.6 | G41: 4.3 | H41: 11.6 | I41: 96 | J41: 0.02 | K41: 0.6 | L41: 25.76 | M41: 11.61 | N41: 134.18 | O41: 7.18 | P41: 0.41
A42: 96 | B42: Гуляш из отварного мяса | E42: 110 | F42: 13.62 | G42: 14.16 | H42: 2.52 | I42: 192.07 | J42: 0.04 | K42: 1.62 | L42: 0 | M42: 8.79 | N42: 101.41 | O42: 15.23 | P42: 1.46
A43: 222 | B43: Каша пшенная рассыпчатая с маслом | E43: 180 | F43: 7.8 | G43: 7.7 | H43: 46.9 | I43: 289.3 | J43: 0.3 | K43: 0 | L43: 20 | M43: 20.15 | N43: 165.07 | O43: 58.27 | P43: 1.91
A44: 295 | B44: Компот из плодов яблок | E44: 200 | F44: 0.2 | G44: 0 | H44: 17.2 | I44: 68 | J44: 0.01 | K44: 20.2 | L44: 0 | M44: 6.76 | N44: 4.4 | O44: 3.6 | P44: 0.92
A45: СГР | B45: Хлеб пшеничный | E45: 25 | F45: 2 | G45: 0 | H45: 10 | I45: 50 | J45: 0.04 | K45: 0 | L45: 0 | M45: 5.75 | N45: 21.75 | O45: 8.25 | P45: 0.5
A46: СГР | B46: Хлеб ржаной-пшеничный | E46: 25 | F46: 2 | G46: 0 | H46: 10 | I46: 50 | J46: 0.04 | K46: 0 | L46: 0 | M46: 7.25 | N46: 32.5 | O46: 10.5 | P46: 0.9
B47: Итого за обед | F47: =SUM(F40:F46) -> 29.82 | G47: 31.37 | H47: 106.99 | I47: 834.56 | J47: 0.47 | K47: 25.92 | L47: 45.76 | M47: 69.11 | N47: 459.8 | O47: 111.53 | P47: 6.35
B48: Итого за день | F48: 40.14 | G48: 45.12 | H48: 163.61 | I48: 1218.75 | J48: 1.1 | K48: 30.52 | L48: 96.66 | M48: 209.57 | N48: 522.6 | O48: 223.23 | P48: 13.67
A57: День: среда | E57: Сезон: 01.09-01.03 (2025-2026гг)
A58: Неделя: 1 | E58: Возраст: с 11 до 18 лет
A59: № | B59: Наименование блюда | E59: масса | F59: Пищевые вещества (г) | I59: энерге- | J59: Витамины | M59: Минеральные вещества (мг)
A60: рец. | E60: порций | F60: Б | G60: Ж | H60: У | I60: тическая | J60: В1 | K60: С | L60: А | M60: Са | N60: Р | O60: Мg | P60: Fe
I61: ценность
B62: Завтрак
A63: 80 | B63: Рыба,тушенная в томате с овощами | E63: 150 | F63: 20.15 | G63: 6.14 | H63: 4.93 | I63: 156.55 | J63: 0.05 | K63: 0.3 | L63: 0 | M63: 26.6 | N63: 121.66 | O63: 17.48 | P63: 0.46
A64: 138 | B64: Пюре картофельное | E64: 180 | F64: 3.6 | G64: 5.55 | H64: 24.15 | I64: 163.5 | J64: 0.12 | K64: 10.38 | L64: 28.8 | M64: 35.6 | N64: 98.22 | O64: 33.03 | P64: 1.2
A65: 289 | B65: Какао с молоком | E65: 200 | F65: 3.6 | G65: 3.3 | H65: 13.7 | I65: 98 | J65: 0.03 | K65: 0.52 | L65: 15.96 | M65: 110.37 | N65: 109.42 | O65: 26.97 | P65: 0.88
A66: СГР | B66: Хлеб пшеничный для детского питания | E66: 50 | F66: 4 | G66: 0 | H66: 7.81 | I66: 39.06 | J66: 0.09 | K66: 0 | L66: 0 | M66: 10.2 | N66: 35.8 | O66: 14.2 | P66: 1
B67: Фрукты | E67: 200 | F67: 1 | G67: 0 | H67: 7 | I67: 34 | J67: 0.05 | K67: 34.2 | L67: 0 | M67: 31.5 | N67: 15.3 | O67: 9.9 | P67: 0.09
B68: Итого за завтрак | F68: =SUM(F63:F67) -> 32.35 | G68: 14.99 | H68: 57.59 | I68: 491.11 | J68: 0.34 | K68: 45.4 | L68: 44.76 | M68: 214.27 | N68: 380.4 | O68: 101.58 | P68: 3.63
B69: Обед
A70: 23 | B70: Салат из свеклы с растительным маслом | E70: 100 | F70: 1.3 | G70: 7.4 | H70: 6 | I70: 95 | J70: 0.01 | K70: 1.49 | L70: 1.36 | M70: 27.69 | N70: 17.76 | O70: 14.92 | P70: 0.96
A71: 44 | B71: Суп из овощей на мясном бульне со сметаной | E71: 260 | F71: 1.93 | G71: 5.86 | H71: 12.59 | I71: 115.24 | J71: 0.1 | K71: 17.47 | L71: 7.62 | M71: 30.07 | N71: 155.45 | O71: 30.18 | P71: 2.43
A72: 92 | B72: Бефстроганов | E72: 110 | F72: 16.09 | G72: 22.55 | H72: 6.18 | I72: 292.29 | J72: 0.07 | K72: 2.48 | L72: 2.76 | M72: 25.7 | N72: 197.58 | O72: 21.48 | P72: 2.48
A73: 212 | B73: Отварные макаронные изделия | E73: 185 | F73: 6.97 | G73: 4.44 | H73: 44.48 | I73: 245.99 | J73: 0.008 | K73: 0 | L73: 21.24 | M73: 11.17 | N73: 48.68 | O73: 8.77 | P73: 0.89
A74: 294 | B74: Компот из сухофруктов | E74: 200 | F74: 0.12 | G74: 0 | H74: 19.4 | I74: 79.6 | J74: 0.07 | K74: 0.29 | L74: 0 | M74: 14.32 | N74: 0 | O74: 8.5 | P74: 0.92
A75: СГР | B75: Хлеб пшеничный | E75: 25 | F75: 2 | G75: 0 | H75: 10 | I75: 50 | J75: 0.04 | K75: 0 | L75: 0 | M75: 5.75 | N75: 21.75 | O75: 8.25 | P75: 0.5
A76: СГР | B76: Хлеб ржано-пшеничный | E76: 25 | F76: 2 | G76: 0 | H76: 10 | I76: 50 | J76: 0.04 | K76: 0 | L76: 0 | M76: 7.25 | N76: 32.5 | O76: 10.5 | P76: 0.9
B77: Итого за обед | F77: =SUM(F70:F76) -> 30.41 | G77: 40.25 | H77: 108.65 | I77: 928.12 | J77: 0.338 | K77: 21.73 | L77: 32.98 | M77: 121.95 | N77: 473.72 | O77: 102.6 | P77: 9.08
B78: Итого за день | F78: 62.76 | G78: 55.24 | H78: 166.24 | I78: 1419.23 | J78: 0.66 | K78: 88.94 | L78: 105.7 | M78: 374.12 | N78: 823.87 | O78: 221.63 | P78: 11.94
A87: День: четверг | E87: Сезон: 01.09-01.03 (2025-2026гг)
A88: Неделя: 1 | E88: Возраст: с 11 до 18 лет
A89: № | B89: Наименование блюда | E89: масса | F89: Пищевые вещества (г) | I89: энерге- | J89: Витамины | M89: Минеральные вещества (мг)
A90: рец. | E90: порций | F90: Б | G90: Ж | H90: У | I90: тическая | J90: В1 | K90: С | L90: А | M90: Са | N90: Р | O90: Мg | P90: Fe
I91: ценность
B92: Завтрак
A93: 1 | B93: Сыр (порциями) | E93: 15 | F93: 3.66 | G93: 3.54 | H93: 0 | I93: 46.5 | J93: 0 | K93: 0.07 | L93: 21 | M93: 100 | N93: 60 | O93: 5.5 | P93: 0.07
A94: 196 | B94: Каша "Дружба" с маслом | E94: 205 | F94: 6.6 | G94: 8.4 | H94: 35.38 | I94: 243.07 | J94: 0.01 | K94: 0.52 | L94: 2 | M94: 124.8 | N94: 127.44 | O94: 36.3 | P94: 0.78
A95: 273 | B95: Булочка Домашняя | E95: 75 | F95: 7.3 | G95: 11.7 | H95: 55.4 | I95: 358 | J95: 0 | K95: 0 | L95: 0 | M95: 0 | N95: 0 | O95: 0 | P95: 0
A96: 285 | B96: Чай с лимоном и с сахаром | E96: 207 | F96: 0.07 | G96: 0.01 | H96: 15.31 | I96: 61.62 | J96: 0 | K96: 0 | L96: 0 | M96: 3.25 | N96: 1.54 | O96: 0.84 | P96: 0.09
A97: СГР | B97: Хлеб пшеничный для детского питания | E97: 50 | F97: 4 | G97: 0 | H97: 7.81 | I97: 39.06 | J97: 0.07 | K97: 0 | L97: 0 | M97: 9.2 | N97: 34.8 | O97: 13.2 | P97: 0.8
B98: Фрукты | E98: 200 | F98: 1 | G98: 0 | H98: 7 | I98: 34 | J98: 0.05 | K98: 34.2 | L98: 0 | M98: 31.5 | N98: 15.3 | O98: 9.9 | P98: 0.09
B99: Итого за завтрак | F99: =SUM(F93:F98) -> 22.63 | G99: 23.65 | H99: 120.9 | I99: 782.25 | J99: 0.13 | K99: 34.79 | L99: 23 | M99: 268.75 | N99: 239.08 | O99: 65.74 | P99: 1.83
B100: Обед
A101: 19 | B101: Салат из моркови | E101: 100 | F101: 2 | G101: 9 | H101: 5.29 | I101: 93 | J101: 0 | K101: 0.07 | L101: 21 | M101: 100 | N101: 60 | O101: 5.5 | P101: 0.07
A102: 42 | B102: Борщ с капустой и картофелем на мясном бульоне со сметаной | E102: 260 | F102: 1.9 | G102: 6.66 | H102: 10.81 | I102: 111.11 | J102: 0.1 | K102: 24.92 | L102: 7.63 | M102: 46.02 | N102: 173.75 | O102: 39.96 | P102: 3.1
A103: 97 | B103: Жаркое по-домашнему | E103: 200 | F103: 19.89 | G103: 15.24 | H103: 19.57 | I103: 295.6 | J103: 0.15 | K103: 21.2 | L103: 0 | M103: 17.3 | N103: 152.04 | O103: 35 | P103: 2.27
A104: 294 | B104: Компот из сухофруктов | E104: 200 | F104: 0.12 | G104: 0 | H104: 19.4 | I104: 79.6 | J104: 0.07 | K104: 0.29 | L104: 0 | M104: 14.32 | N104: 0 | O104: 8.5 | P104: 0.92
A105: СГР | B105: Хлеб пшеничный | E105: 25 | F105: 2 | G105: 0 | H105: 10 | I105: 50 | J105: 0.04 | K105: 0 | L105: 0 | M105: 5.75 | N105: 21.75 | O105: 8.25 | P105: 0.5
A106: СГР | B106: Хлеб ржаной | E106: 25 | F106: 2 | G106: 0 | H106: 10 | I106: 50 | J106: 0.04 | K106: 0 | L106: 0 | M106: 7.25 | N106: 32.5 | O106: 10.5 | P106: 0.9
B107: Итого за обед | F107: =SUM(F101:F106) -> 27.91 | G107: 30.9 | H107: 75.07 | I107: 679.31 | J107: 0.4 | K107: 46.48 | L107: 28.63 | M107: 190.64 | N107: 440.04 | O107: 107.71 | P107: 7.76
B108: Итого за день | F108: 50.54 | G108: 54.55 | H108: 195.97 | I108: 1461.56 | J108: 0.64 | K108: 86.44 | L108: 92.15 | M108: 396.46 | N108: 686.28 | O108: 197.36 | P108: 9.63
A120: День: пятница | E120: Сезон: 01.09-01.03 (2025-2026гг)
A121: Неделя: 1 | E121: Возраст: с 11 до 18 лет
A122: № | B122: Наименование блюда | E122: масса | F122: Пищевые вещества (г) | I122: энерге- | J122: Витамины | M122: Минеральные вещества (мг)
A123: рец. | E123: порций | F123: Б | G123: Ж | H123: У | I123: тическая | J123: В1 | K123: С | L123: А | M123: Са | N123: Р | O123: Мg | P123: Fe
I124: ценность
B125: Завтрак
A126: 33 | B126: Салат Пестрый | E126: 100 | F126: 1 | G126: 5 | H126: 10.37 | I126: 90 | J126: 0.01 | K126: 3.14 | L126: 0 | M126: 20.83 | N126: 30.15 | O126: 12.23 | P126: 1.13
A127: 112 | B127: Плов из говядины | E127: 210 | F127: 20.88 | G127: 20.24 | H127: 30.9 | I127: 392 | J127: 0.08 | K127: 1.35 | L127: 0 | M127: 14.02 | N127: 178.97 | O127: 41.8 | P127: 1.97
A128: 283 | B128: Чай с сахаром | E128: 200 | F128: 0.1 | G128: 0 | H128: 9.1 | I128: 35 | J128: 0.02 | K128: 0.65 | L128: 10 | M128: 60.3 | N128: 45 | O128: 7 | P128: 0.08
A129: СГР | B129: Хлеб пшеничный для детского питания | E129: 50 | F129: 4 | G129: 0 | H129: 7.81 | I129: 39.06 | J129: 0.07 | L129: 0 | M129: 9.2 | N129: 34.8 | O129: 13.2 | P129: 0.8
B130: Фрукты | E130: 200 | F130: 1 | G130: 0 | H130: 7 | I130: 34 | J130: 0.05 | K130: 34.2 | L130: 0 | M130: 31.5 | N130: 15.3 | O130: 9.9 | P130: 0.09
B131: Итого за завтрак | F131: =SUM(F126:F130) -> 26.98 | G131: 25.24 | H131: 65.18 | I131: 590.06 | J131: 0.23 | K131: 39.34 | L131: 10 | M131: 135.85 | N131: 304.22 | O131: 84.13 | P131: 4.07
B132: Обед
A133: 42 | B133: Винегрет | E133: 100 | F133: 1.26 | G133: 10.14 | H133: 8.32 | I133: 129.26 | J133: 0.03 | K133: 4.14 | L133: 0 | M133: 18.59 | N133: 12.93 | O133: 12.54 | P133: 0.54
A134: 56 | B134: Бишбармак | E134: 250 | F134: 2.6 | G134: 4.3 | H134: 11.6 | I134: 96 | J134: 0.09 | K134: 1.77 | L134: 10.15 | M134: 22.35 | N134: 175.47 | O134: 27.27 | P134: 2.83
A135: 98 | B135: Рыба, тушенная в томате с овощами | E135: 150 | F135: 20.15 | G135: 6.14 | H135: 4.93 | I135: 156.55 | J135: 0.09 | K135: 3.81 | L135: 6.2 | M135: 33 | N135: 166.16 | O135: 44.06 | P135: 0.78
A136: 138 | B136: Картофельное пюре | E136: 180 | F136: 3.6 | G136: 5.55 | H136: 24.15 | I136: 163.5 | J136: 0.23 | K136: 10.18 | L136: 0.88 | M136: 27.95 | N136: 0 | O136: 40.23 | P136: 3.02
A137: 295 | B137: Компот из плодов яблок | E137: 200 | F137: 0.2 | G137: 0 | H137: 17.2 | I137: 68 | J137: 0.01 | K137: 20.2 | L137: 0 | M137: 6.76 | N137: 4.4 | O137: 3.6 | P137: 0.92
A138: СГР | B138: Хлеб пшеничный | E138: 25 | F138: 2 | G138: 0 | H138: 10 | I138: 50 | J138: 0.04 | K138: 0 | L138: 0 | M138: 5.75 | N138: 21.75 | O138: 8.25 | P138: 0.5
A139: СГР | B139: Хлеб ржано-пшеничный | E139: 25 | F139: 2 | G139: 0 | H139: 10 | I139: 50 | J139: 0.04 | K139: 0 | L139: 0 | M139: 7.25 | N139: 32.5 | O139: 10.5 | P139: 0.9
B140: Итого за обед | F140: =SUM(F133:F139) -> 31.81 | G140: 26.13 | H140: 86.2 | I140: 713.31 | J140: 0.53 | K140: 40.1 | L140: 17.23 | M140: 121.65 | N140: 413.21 | O140: 146.45 | P140: 9.49
B141: Итого за день | F141: 52.41 | G141: 55.9 | H141: 160.73 | I141: 1372.52 | J141: 0.76 | K141: 124.81 | L141: 26.35 | M141: 271.91 | N141: 846.37 | O141: 237.56 | P141: 11.74
A152: День: понедельник | E152: Сезон: 01.09-01.03 (2025-2026гг)
A153: Неделя: 2 | E153: Возраст: с 11 до 18 лет
A154: № | B154: Наименование блюда | E154: масса | F154: Пищевые вещества (г) | I154: энерге- | J154: Витамины | M154: Минеральные вещества (мг)
A155: рец. | E155: порций | F155: Б | G155: Ж | H155: У | I155: тическая | J155: В1 | K155: С | L155: А | M155: Са | N155: Р | O155: Мg | P155: Fe
I156: ценность
B157: Завтрак
A158: 1 | B158: Сыр (порциями) | E158: 15 | F158: 3.66 | G158: 3.54 | H158: 0 | I158: 46.5 | J158: 0.03 | K158: 0.16 | L158: 21 | M158: 137.28 | N158: 60 | O158: 14.55 | P158: 0.06
A159: 98 | B159: Котлеты из говядины 80/40 | E159: 140 | F159: 15.6 | G159: 18.6 | H159: 16.1 | I159: 310.06 | J159: 0.07 | K159: 0.25 | L159: 40.5 | M159: 50.7 | N159: 162.2 | O159: 30.4 | P159: 1.41
A160: 212 | B160: Макаронные изделия отварные | E160: 185 | F160: 6.97 | G160: 4.44 | H160: 44.48 | I160: 245.99 | J160: 0.008 | K160: 0 | L160: 24 | M160: 11.15 | N160: 46.26 | O160: 8.18 | P160: 0.83
A161: 283 | B161: Чай с сахаром | E161: 200 | F161: 0.1 | G161: 0 | H161: 9.1 | I161: 35 | J161: 0 | K161: 0 | L161: 0 | M161: 0.45 | N161: 0 | O161: 0 | P161: 0.05
A162: СГР | B162: Хлеб пшеничный для детского питания | E162: 50 | F162: 4 | G162: 0 | H162: 7.81 | I162: 39.06 | J162: 0.07 | K162: 0 | L162: 0 | M162: 9.2 | N162: 34.8 | O162: 13.2 | P162: 0.8
B163: Фрукты | E163: 200 | F163: 1 | G163: 0 | H163: 7 | I163: 34 | J163: 0.05 | K163: 34.2 | L163: 0 | M163: 31.5 | N163: 15.3 | O163: 9.9 | P163: 0.09
B164: Итого за завтрак | F164: =SUM(F158:F163) -> 31.33 | G164: 26.58 | H164: 84.49 | I164: 710.61 | J164: 0.228 | K164: 34.61 | L164: 85.5 | M164: 240.28 | N164: 318.56 | O164: 76.23 | P164: 3.24
B165: Обед
A166: 27 | B166: Салат из свеклы с яблоками | E166: 100 | F166: 0.8 | G166: 5.1 | H166: 7.4 | I166: 78 | J166: 0.02 | K166: 3.94 | L166: 0 | M166: 22.9 | N166: 19.47 | O166: 12.68 | P166: 1.29
A167: 63 | B167: Суп картофельный с бобовыми на мясном бульоне | E167: 250 | F167: 9.88 | G167: 5.3 | H167: 39.38 | I167: 248.75 | J167: 0.22 | K167: 9.74 | L167: 0.11 | M167: 35.39 | N167: 190.3 | O167: 43.15 | P167: 3.26
A168: 94 | B168: Азу | E168: 120 | F168: 17.52 | G168: 24.12 | H168: 3.96 | I168: 302.4 | J168: 0.04 | K168: 1.62 | L168: 0 | M168: 8.79 | N168: 101.41 | O168: 15.23 | P168: 1.46
A169: 173 | B169: Каша гречневая рассыпчатая | E169: 185 | F169: 10.48 | G169: 6.52 | H169: 54 | I169: 316.57 | J169: 0.29 | L169: 24 | M169: 15.28 | N169: 208.03 | O169: 138.41 | P169: 4.65
A170: 311 | B170: Витаминизированный кисель | E170: 200 | F170: 0.25 | G170: 0 | H170: 4.8 | I170: 20 | J170: 0 | K170: 16.2 | L170: 0 | M170: 0.32 | N170: 0 | O170: 0 | P170: 0.03
A171: СГР | B171: Хлеб пшеничный | E171: 25 | F171: 2 | G171: 0 | H171: 10 | I171: 50 | J171: 0.04 | K171: 0 | L171: 0 | M171: 5.75 | N171: 21.75 | O171: 8.25 | P171: 0.5
A172: СГР | B172: Хлеб ржаной | E172: 25 | F172: 2 | G172: 0 | H172: 10 | I172: 50 | J172: 0.04 | K172: 0 | L172: 0 | M172: 7.25 | N172: 32.5 | O172: 10.5 | P172: 0.9
B173: Итого за обед | F173: =SUM(F166:F172) -> 42.93 | G173: 41.04 | H173: 129.54 | I173: 1065.72 | J173: 0.65 | K173: 31.5 | L173: 24.11 | M173: 95.68 | N173: 573.46 | O173: 228.22 | P173: 12.09
B174: Итого за день | F174: 72.09 | G174: 64.62 | H174: 211.76 | I174: 1732.04 | J174: 0.958 | K174: 67.28 | L174: 146.16 | M174: 410.43 | N174: 977.97 | O174: 304.51 | P174: 15.165
A184: День: вторник | E184: Сезон: 01.09-01.03 (2025-2026гг)
A185: Неделя: 2 | E185: Возраст: с 11 до 18 лет
A186: № | B186: Наименование блюда | E186: масса | F186: Пищевые вещества (г) | I186: энерге- | J186: Витамины | M186: Минеральные вещества (мг)
A187: рец. | E187: порций | F187: Б | G187: Ж | H187: У | I187: тическая | J187: В1 | K187: С | L187: А | M187: Са | N187: Р | O187: Мg | P187: Fe
I188: ценность
B189: Завтрак
A190: 3 | B190: Масло сливочное | E190: 10 | F190: 0.1 | G190: 7.13 | H190: 0.1 | I190: 66 | J190: 0.04 | K190: 15 | L190: 0 | M190: 8.4 | N190: 29.16 | O190: 12 | P190: 0.54
A191: 273 | B191: Булочка домашняя | E191: 75 | F191: 7.3 | G191: 11.7 | H191: 55.4 | I191: 358 | J191: 0.08 | K191: 10.64 | L191: 45.81 | M191: 15.51 | N191: 123.85 | O191: 25.73 | P191: 0.82
A192: 198 | B192: Каша пшенная молочная | E192: 205 | F192: 7.2 | G192: 8.9 | H192: 34.1 | I192: 245.5 | J192: 0.18 | K192: 0.51 | L192: 38 | M192: 126 | N192: 124.35 | O192: 44 | P192: 1.14
A193: 285 | B193: Чай с лимоном и с сахаром | E193: 207 | F193: 0.07 | G193: 0.01 | H193: 15.31 | I193: 61.62 | J193: 0 | K193: 0 | L193: 0 | M193: 3.25 | N193: 1.54 | O193: 0.84 | P193: 0.09
A194: СГР | B194: Хлеб пшеничный для детского питания | E194: 50 | F194: 4 | G194: 0 | H194: 7.81 | I194: 39.06 | J194: 0.09 | K194: 0 | L194: 0 | M194: 10.2 | N194: 35.8 | O194: 14.2 | P194: 1
B195: Фрукты | E195: 200 | F195: 1 | G195: 0 | H195: 7 | I195: 34 | J195: 0.05 | K195: 34.2 | L195: 0 | M195: 31.5 | N195: 15.3 | O195: 9.9 | P195: 0.09
B196: Итого за завтрак | F196: 19.67 | G196: 27.74 | H196: 119.72 | I196: 804.18 | J196: =SUM(J191:J195) -> 0.4 | K196: 45.35 | L196: 83.81 | M196: 186.46 | N196: 300.84 | O196: 94.67 | P196: 3.14
B197: Обед
A198: 22 | B198: Салат витаминный | E198: 100 | F198: 1.6 | G198: 4.6 | H198: 11.1 | I198: 90 | J198: 0.03 | K198: 13.7 | L198: 0 | M198: 38.1 | N198: 0 | O198: 0.03 | P198: 0.95
A199: 68 | B199: Свекольник со сметаной | E199: 260 | F199: 2.41 | G199: 7.93 | H199: 12.56 | I199: 130.2 | J199: 0.07 | K199: 15.21 | L199: 7.5 | M199: 32.53 | N199: 57.52 | O199: 25.98 | P199: 1.27
A200: 112 | B200: Плов из говядины | E200: 210 | F200: 20.88 | G200: 20.24 | H200: 30.9 | I200: 392 | J200: 0.08 | K200: 1.35 | L200: 0 | M200: 14.53 | N200: 178.97 | O200: 41.8 | P200: 1.97
A201: 295 | B201: Компот из плодов яблок | E201: 200 | F201: 0.2 | G201: 0 | H201: 17.2 | I201: 68 | J201: 0.01 | K201: 20.2 | L201: 0 | M201: 6.76 | N201: 4.4 | O201: 3.6 | P201: 0.92
A202: СГР | B202: Хлеб пшеничный | E202: 25 | F202: 2 | G202: 0 | H202: 10 | I202: 50 | J202: 0.04 | K202: 0 | L202: 0 | M202: 5.75 | N202: 21.75 | O202: 8.25 | P202: 0.5
A203: СГР | B203: Хлеб ржаной | E203: 25 | F203: 2 | G203: 0 | H203: 10 | I203: 50 | J203: 0.04 | K203: 0 | L203: 0 | M203: 7.25 | N203: 32.5 | O203: 10.5 | P203: 0.9
B204: Итого за обед | F204: =SUM(F198:F203) -> 29.09 | G204: 32.77 | H204: 91.76 | I204: 780.2 | J204: 0.27 | K204: 50.46 | L204: 7.5 | M204: 104.92 | N204: 295.14 | O204: 90.16 | P204: 6.51
B205: Итого за день | F205: 48.76 | G205: 60.51 | H205: 211.48 | I205: 1584.38 | J205: 0.645 | K205: 85.5 | L205: 91.31 | M205: 292.27 | N205: 637.07 | O205: 190.21 | P205: 8.99
A207: День: среда | E207: Сезон: 01.09-01.03 (2025-2026гг)
A208: Неделя: 2 | E208: Возраст: с 11 до 18 лет
A209: № | B209: Наименование блюда | E209: масса | F209: Пищевые вещества (г) | I209: энерге- | J209: Витамины | M209: Минеральные вещества (мг)
A210: рец. | E210: порций | F210: Б | G210: Ж | H210: У | I210: тическая | J210: В1 | K210: С | L210: А | M210: Са | N210: Р | O210: Мg | P210: Fe
I211: ценность
B212: Завтрак
A213: 98 | B213: Котлеты из говядины | E213: 140 | F213: 15.6 | G213: 18.6 | H213: 16.1 | I213: 310.06 | J213: 0.05 | K213: 0.3 | L213: 0 | M213: 26.6 | N213: 121.66 | O213: 17.48 | P213: 0.46
A214: 138 | B214: Пюре картофельное | E214: 180 | F214: 3.6 | G214: 5.55 | H214: 24.15 | I214: 163.5 | J214: 0.12 | K214: 10.38 | L214: 28.8 | M214: 35.6 | N214: 98.22 | O214: 33.03 | P214: 1.2
A215: 289 | B215: Какао с молоком | E215: 200 | F215: 3.6 | G215: 3.3 | H215: 13.7 | I215: 98 | J215: 0.03 | K215: 0.52 | L215: 15.96 | M215: 110.37 | N215: 109.42 | O215: 26.97 | P215: 0.88
A216: СГР | B216: Хлеб пшеничный для детского питания | E216: 50 | F216: 4 | G216: 0 | H216: 7.81 | I216: 39.06 | J216: 0.09 | K216: 0 | L216: 0 | M216: 10.2 | N216: 35.8 | O216: 14.2 | P216: 1
B217: Фрукты | E217: 200 | F217: 1 | G217: 0 | H217: 7 | I217: 34 | J217: 0.05 | K217: 34.2 | L217: 0 | M217: 31.5 | N217: 15.3 | O217: 9.9 | P217: 0.09
B218: Итого за завтрак | F218: =SUM(F213:F217) -> 27.8 | G218: 27.45 | H218: 68.76 | I218: 644.62 | J218: 0.34 | K218: 45.4 | L218: 44.76 | M218: 214.27 | N218: 380.4 | O218: 101.58 | P218: 3.63
B219: Обед
A220: 40 | B220: Салат Степной | E220: 100 | F220: 1.6 | G220: 5.21 | H220: 8.77 | I220: 89.19 | J220: 0.05 | K220: 2.29 | L220: 2.4 | M220: 14.31 | N220: 12.3 | O220: 14.53 | P220: 0.45
A221: 61 | B221: Суп картофельный с крупой на мясном бульоне | E221: 250 | F221: 2.6 | G221: 2.5 | H221: 19.3 | I221: 112 | J221: 0.08 | K221: 7 | L221: 4.05 | M221: 15.49 | N221: 57.52 | O221: 24.01 | P221: 0.91
A222: 596 | B222: Рагу овощное с мясом | E222: 240 | F222: 16.1 | G222: 19 | H222: 16.3 | I222: 301 | J222: 0.09 | K222: 10.52 | L222: 8.9 | M222: 34.6 | N222: 27 | O222: 41.35 | P222: 2.54
A223: 294 | B223: Компот из сухофруктов | E223: 200 | F223: 0.12 | G223: 0 | H223: 19.4 | I223: 79.6 | J223: 0.01 | K223: 20.2 | L223: 0 | M223: 6.76 | N223: 4.4 | O223: 3.6 | P223: 0.92
A224: СГР | B224: Хлеб пшеничный | E224: 25 | F224: 2 | G224: 0 | H224: 10 | I224: 50 | J224: 0.04 | K224: 0 | L224: 0 | M224: 5.75 | N224: 21.75 | O224: 8.25 | P224: 0.5
A225: СГР | B225: Хлеб ржано- пшеничный | E225: 25 | F225: 2 | G225: 0 | H225: 10 | I225: 50 | J225: 0.04 | K225: 0 | L225: 0 | M225: 7.25 | N225: 32.5 | O225: 10.5 | P225: 0.9
B226: Итого за обед | F226: =SUM(F220:F225) -> 24.42 | G226: 26.71 | H226: 83.77 | I226: 681.79 | J226: 0.31 | K226: 40.01 | L226: 15.35 | M226: 84.16 | N226: 155.47 | O226: 102.24 | P226: 6.22
B227: Итого за день | F227: 49.71 | G227: 56.09 | H227: 149.81 | I227: 1322.19 | J227: 0.675 | K227: 105.48 | L227: 52.26 | M227: 317.57 | N227: 721.83 | O227: 221.52 | P227: 9.96
A249: День: четверг | E249: Сезон: 01.09-01.03 (2025-2026гг)
A250: Неделя: 2 | E250: Возраст: с 11 до 18 лет
A251: № | B251: Наименование блюда | E251: масса | F251: Пищевые вещества (г) | I251: энерге- | J251: Витамины | M251: Минеральные вещества (мг)
A252: рец. | E252: порций | F252: Б | G252: Ж | H252: У | I252: тическая | J252: В1 | K252: С | L252: А | M252: Са | N252: Р | O252: Мg | P252: Fe
I253: ценность
B254: Завтрак
A255: 3 | B255: Масло сливочное | E255: 10 | F255: 0.1 | G255: 7.13 | H255: 0.1 | I255: 66 | J255: 0.04 | K255: 15 | L255: 0 | M255: 8.4 | N255: 29.16 | O255: 12 | P255: 0.54
A256: 1 | B256: Сыр (порциями) | E256: 15 | F256: 3.66 | G256: 3.54 | H256: 0 | I256: 46.5 | J256: 0.03 | K256: 0.16 | L256: 21 | M256: 137.28 | N256: 60 | O256: 14.55 | P256: 0.06
A257: 198 | B257: Каша манная молочная | E257: 200/5 | F257: 6 | G257: 8 | H257: 29.8 | I257: 215.5 | J257: 0.06 | K257: 0.53 | L257: 1.75 | M257: 127.1 | N257: 208.03 | O257: 18.9 | P257: 0.42
A258: 301 | B258: Витаминный напиток | E258: 200 | F258: 0 | G258: 0 | H258: 15.8 | I258: 60 | J258: 0.3 | K258: 11.2 | L258: 170 | M258: 220 | N258: 4.2 | O258: 12.18 | P258: 0
A259: СГР | B259: Хлеб пшеничный для детского питания | E259: 50 | F259: 4 | G259: 0 | H259: 7.81 | I259: 39.06 | J259: 0.07 | K259: 0 | L259: 0 | M259: 9.2 | N259: 34.8 | O259: 13.2 | P259: 0.8
B260: Фрукты | E260: 200 | F260: 1 | G260: 0 | H260: 7 | I260: 34 | J260: 0.05 | K260: 34.2 | L260: 0 | M260: 31.5 | N260: 15.3 | O260: 9.9 | P260: 0.09
B261: Итого за завтрак | F261: =SUM(F255:F260) -> 14.76 | G261: =SUM(G255:G260) -> 18.67 | H261: =SUM(H255:H260) -> 60.51 | I261: =SUM(I255:I260) -> 461.06 | J261: =SUM(J255:J260) -> 0.55 | K261: 39.48 | L261: 56.4 | M261: 228.28 | N261: 363.21 | O261: 183.67 | P261: 6.14
B262: Обед
A263: 34 | B263: Салат Здоровье | E263: 100 | F263: 1.5 | G263: 5.1 | H263: 7.2 | I263: 80 | J263: 0.05 | K263: 6.39 | L263: 3.1 | M263: 20.95 | N263: 20.04 | O263: 19.95 | P263: 0.78
A264: 54 | B264: Рассольник ленинградский со сметаной | E264: 260 | F264: 5.03 | G264: 11.3 | H264: 32.38 | I264: 149.6 | J264: 0.12 | K264: 13.87 | L264: 7.62 | M264: 26.23 | N264: 171.85 | O264: 33.68 | P264: 2.58
A265: 96 | B265: Гуляш из отварной говядины | E265: 110 | F265: 13.62 | G265: 14.16 | H265: 2.52 | I265: 192.07 | J265: 0.05 | K265: 0.98 | L265: 0.12 | M265: 12.18 | N265: 138.26 | O265: 22.98 | P265: 2.6
A266: 212 | B266: Отварные макаронные изделия | E266: 185 | F266: 6.97 | G266: 4.44 | H266: 44.48 | I266: 245.99 | J266: 0.008 | K266: 0 | L266: 21.24 | M266: 11.17 | N266: 48.68 | O266: 8.77 | P266: 0.89
A267: 294 | B267: Компот из сухофруктов | E267: 200 | F267: 0.12 | G267: 0 | H267: 19.4 | I267: 79.6 | J267: 0.07 | K267: 0.29 | L267: 0 | M267: 14.32 | N267: 0 | O267: 8.5 | P267: 0.92
A268: СГР | B268: Хлеб пшеничный | E268: 25 | F268: 2 | G268: 0 | H268: 10 | I268: 50 | J268: 0.04 | K268: 0 | L268: 0 | M268: 5.75 | N268: 21.75 | O268: 8.25 | P268: 0.5
A269: СГР | B269: Хлеб ржано-пшеничный | E269: 25 | F269: 2 | G269: 0 | H269: 10 | I269: 50 | J269: 0.04 | K269: 0 | L269: 0 | M269: 7.25 | N269: 32.5 | O269: 10.5 | P269: 0.9
B270: Итого за обед | F270: =SUM(F263:F269) -> 31.24 | G270: 35 | H270: 125.98 | I270: 847.26 | J270: 0.378 | K270: 21.53 | L270: 32.08 | M270: 97.85 | N270: 433.08 | O270: 112.63 | P270: 9.17
B271: Итого за день | F271: 46 | G271: 53.67 | H271: 186.49 | I271: 1308.32 | J271: 1.25 | K271: 90.08 | L271: 115.18 | M271: 351.15 | N271: 784.61 | O271: 303.64 | P271: 13.31
A281: День: пятница | E281: Сезон: 01.09-01.03 (2025-2026гг)
... 23 more rows

Sheet Лист3
